[Event "September Lviv Tradition 2019"]
[Site "Lviv"]
[Date "2019.09.26"]
[Round "6.4"]
[White "Cherniaiev, Tykhon"]
[Black "Nester, Ihor"]
[Result "0-1"]
[ECO "C99"]
[WhiteElo "2112"]
[BlackElo "2383"]
[Annotator "NA"]
[PlyCount "166"]
[EventDate "2019.09.23"]
[EventType "tourn"]
[EventCountry "UKR"]
[SourceTitle "playchess.com"]
[Source "ChessBase"]
[SourceQuality "1"]
[TimeControl "5400+30"]

1. e4 {[%emt 0:00:00]} e5 {[%emt 0:00:00]} 2. Nf3 {[%emt 0:00:00]} Nc6 {[%emt 0:00:00]} 3. Bb5 {[%emt 0:00:01]} a6 {[%emt 0:00:00]} 4. Ba4 {[%emt 0:00:17]} Nf6 {[%emt 0:00:00]} 5. O-O {[%emt 0:00:32]} Be7 {[%emt 0:00:00]} 6. Re1 {[%emt 0:00:07]} b5 {[%emt 0:00:02]} 7. Bb3 {[%emt 0:00:05]} d6 {[%emt 0:00:03]} 8. c3 {[%emt 0:00:06]} O-O {[%emt 0:00:06]} 9. h3 {[%emt 0:00:04]} Na5 {[%emt 0:04:40]} 10. Bc2 {[%emt 0:00:22]} c5 {[%emt 0:00:02]} 11. d4 {[%emt 0:01:46]} Qc7 {[%emt 0:00:12]} 12. Nbd2 {[%emt 0:14:51]} cxd4 {[%emt 0:00:38]} 13. cxd4 {[%emt 0:00:09]} Nc6 {[%emt 0:00:06]} 14. d5 {[%emt 0:17:26]} Nb4 {[%emt 0:00:13]} 15. Bb1 {[%emt 0:01:17]} a5 {[%emt 0:00:02]} 16. a3 {[%emt 0:11:39]} Na6 {[%emt 0:00:07]} 17. Bd3 {[%emt 0:03:11]} Bd7 {[%emt 0:00:08]} 18. Qe2 {[%emt 0:01:14]} Rab8 $11 {[%emt 0:06:12]} 19. Nf1 {[%emt 0:15:45]} Nc5 {[%emt 0:00:36]} 20. b4 {[%emt 0:02:36]} axb4 {[%emt 0:20:01]} 21. axb4 {[%emt 0:00:06]} Nxd3 {[%emt 0:00:15]} 22. Qxd3 {[%emt 0:00:08]} Rfc8 {[%emt 0:08:50]} 23. Bd2 {[%emt 0:03:10]} Qc4 {[%emt 0:02:21]} 24. Qxc4 {[%emt 0:01:30]} bxc4 {[%emt 0:01:07]} 25. Bc3 {[%emt 0:00:23]} Ne8 {[%emt 0:04:46]} 26. Ra7 {[%emt 0:04:04]} Rc7 {[%emt 0:01:28]} 27. Rxc7 {[%emt 0:00:23]} Nxc7 {[%emt 0:00:03]} 28. Ne3 {[%emt 0:00:44]} Nb5 {[%emt 0:00:22]} 29. Ba1 {[%emt 0:00:54]} c3 {[%emt 0:00:31]} 30. Rc1 {[%emt 0:01:22]} Nd4 {[%emt 0:04:09]} 31. Kh2 {[%emt 0:00:31]} Ne2 {[%emt 0:12:20]} 32. Rc2 {[%emt 0:02:26]} Bb5 {[%emt 0:00:14]} 33. Ng1 {[%emt 0:04:53]} Nxg1 {[%emt 0:00:54]} 34. Kxg1 {[%emt 0:00:05]} Bd3 {[%emt 0:06:16]} 35. Rxc3 {[%emt 0:00:07]} Bxe4 {[%emt 0:00:04]} 36. Rc7 {[%emt 0:03:44]} Bf8 {[%emt 0:00:25]} 37. Bc3 {[%emt 0:00:43]} f5 {[%emt 0:00:37]} 38. f3 {[%emt 0:02:43]} Bd3 {[%emt 0:00:47]} 39. Nc4 {[%emt 0:06:35]} Bxc4 {[%emt 0:02:50]} 40. Rxc4 {[%emt 0:00:08]} Rb5 {[%emt 0:00:34]} 41. f4 {[%emt 0:01:49]} Rxd5 {[%emt 0:01:30]} 42. g4 {[%emt 0:00:40]} Rd1+ {[%emt 0:03:26]} 43. Kg2 {[%emt 0:02:20]} d5 {[%emt 0:00:42]} 44. Rc8 {[%emt 0:00:02]} d4 {[%emt 0:00:31]} 45. fxe5 {[%emt 0:00:48]} dxc3 {[%emt 0:00:14]} 46. e6 {[%emt 0:00:07]} Re1 {[%emt 0:00:17]} 47. gxf5 {[%emt 0:00:06]} g6 {[%emt 0:01:08]} 48. b5 {[%emt 0:01:26]} gxf5 {[%emt 0:03:50]} 49. b6 {[%emt 0:00:26]} Kg7 {[%emt 0:00:16]} 50. b7 {[%emt 0:00:36]} Bd6 {[%emt 0:00:02]} 51. Rxc3 {[%emt 0:00:06]} Kf6 {[%emt 0:03:06]} 52. Rc6 {[%emt 0:00:46]} Be5 {[%emt 0:00:01]} 53. Rc5 {[%emt 0:00:38]} Bf4 {[%emt 0:01:07]} 54. Kf3 {[%emt 0:00:29]} Re4 {[%emt 0:03:48]} 55. e7 {[%emt 0:00:15]} Bh2 {[%emt 0:03:59]} 56. e8=Q {[%emt 0:00:43]} Rxe8 {[%emt 0:00:13]} 57. Rc8 {[%emt 0:00:06]} Kf7 {[%emt 0:00:09]} 58. Rc5 {[%emt 0:00:28]} Ke6 {[%emt 0:00:37]} 59. Rc8 {[%emt 0:00:43]} Kd7 {[%emt 0:00:03]} 60. Rc5 {[%emt 0:00:05]} Rf8 {[%emt 0:00:36]} 61. Rc4 {[%emt 0:00:58]} Bc7 {[%emt 0:05:48]} 62. Rh4 {[%emt 0:00:27]} Rf7 {[%emt 0:01:00]} 63. Rc4 {[%emt 0:00:08]} Rg7 {[%emt 0:01:09]} 64. Rb4 {[%emt 0:00:43]} Bb8 {[%emt 0:00:47]} 65. Rc4 {[%emt 0:00:36]} Kd6 {[%emt 0:01:03]} 66. Rb4 {[%emt 0:00:43]} Kc6 {[%emt 0:00:12]} 67. Rh4 {[%emt 0:00:26]} Rxb7 {[%emt 0:00:29]} 68. Rh5 {[%emt 0:00:23]} Rf7 {[%emt 0:00:19]} 69. Rg5 {[%emt 0:00:22]} Kd5 {[%emt 0:00:08]} 70. h4 {[%emt 0:00:21]} Ke5 {[%emt 0:00:02]} 71. h5 {[%emt 0:00:13]} Kf6 {[%emt 0:00:03]} 72. Rg8 {[%emt 0:00:06]} Bc7 {[%emt 0:00:10]} 73. h6 {[%emt 0:00:30]} Bd6 {[%emt 0:00:16]} 74. Rg1 {[%emt 0:00:32]} Bf8 {[%emt 0:00:11]} 75. Rh1 {[%emt 0:00:03]} Ra7 {[%emt 0:00:08]} 76. Rd1 {[%emt 0:00:31]} Bxh6 {[%emt 0:00:13]} 77. Rd6+ {[%emt 0:00:08]} Kg5 {[%emt 0:00:02]} 78. Rd8 {[%emt 0:00:09]} Ra3+ {[%emt 0:00:05]} 79. Kg2 {[%emt 0:00:06]} Kg4 {[%emt 0:00:12]} 80. Rh8 {[%emt 0:00:10]} Ra2+ {[%emt 0:00:07]} 81. Kf1 {[%emt 0:00:06]} Kf3 {[%emt 0:00:17]} 82. Kg1 {[%emt 0:00:05]} Bf4 {[%emt 0:00:14]} 83. Rxh7 {[%emt 0:00:10]} Ra1# {[%emt 0:00:01]} 0-1

[Event "September Lviv Tradition 2019"]
[Site "Lviv"]
[Date "2019.09.26"]
[Round "6.5"]
[White "Vakulenko, Oleksandr"]
[Black "Frolov, Artur"]
[Result "1/2-1/2"]
[ECO "E83"]
[WhiteElo "2167"]
[BlackElo "2425"]
[Annotator "NA"]
[PlyCount "117"]
[EventDate "2019.09.23"]
[EventType "tourn"]
[EventCountry "UKR"]
[SourceTitle "playchess.com"]
[Source "ChessBase"]
[SourceQuality "1"]
[TimeControl "5400+30"]

1. d4 {[%emt 0:00:00]} Nf6 {[%emt 0:00:00]} 2. c4 {[%emt 0:00:00]} g6 {[%emt 0:00:07]} 3. Nc3 {[%emt 0:00:00]} Bg7 {[%emt 0:00:04]} 4. e4 {[%emt 0:00:00]} d6 {[%emt 0:00:03]} 5. f3 {[%emt 0:00:02]} Nc6 {[%emt 0:00:11]} 6. Be3 {[%emt 0:01:31]} O-O {[%emt 0:00:07]} 7. Nge2 {[%emt 0:00:13]} a6 {[%emt 0:00:13]} 8. Qd2 {[%emt 0:00:10]} Re8 {[%emt 0:00:04]} 9. Rc1 {[%emt 0:04:25]} Bd7 {[%emt 0:05:28]} 10. b3 {[%emt 0:01:44]} e5 {[%emt 0:02:02]} 11. d5 {[%emt 0:01:37]} Ne7 {[%emt 0:00:04]} 12. g4 {[%emt 0:01:03]} h5 {[%emt 0:03:11]} 13. g5 {[%emt 0:00:39]} Nh7 {[%emt 0:00:06]} 14. h4 {[%emt 0:00:12]} c5 {[%emt 0:01:24]} 15. dxc6 {[%emt 0:26:37]} Bxc6 {[%emt 0:02:06]} 16. Rd1 {[%emt 0:01:05]} Qa5 $16 {[%emt 0:18:07]} 17. Qxd6 {[%emt 0:05:13]} Rad8 {[%emt 0:00:20]} 18. Qc5 {[%emt 0:00:30]} Rxd1+ {[%emt 0:00:06]} 19. Kxd1 {[%emt 0:00:04]} b5 {[%emt 0:00:26]} 20. Kc2 {[%emt 0:04:16]} Bf8 {[%emt 0:07:30]} 21. Qb6 {[%emt 0:03:32]} Qxb6 {[%emt 0:04:06]} 22. Bxb6 {[%emt 0:00:04]} bxc4 {[%emt 0:00:12]} 23. bxc4 {[%emt 0:00:02]} f6 {[%emt 0:00:27]} 24. Be3 {[%emt 0:06:55]} fxg5 {[%emt 0:02:36]} 25. hxg5 {[%emt 0:00:03]} Bd7 {[%emt 0:02:58]} 26. c5 {[%emt 0:06:28]} Be6 {[%emt 0:06:07]} 27. Bh3 {[%emt 0:12:09]} Bxh3 {[%emt 0:00:07]} 28. Rxh3 {[%emt 0:00:01]} Nc6 {[%emt 0:04:01]} 29. Nd5 {[%emt 0:00:40]} Kf7 {[%emt 0:02:26]} 30. Nec3 {[%emt 0:04:56]} Nd4+ {[%emt 0:04:07]} 31. Kd3 {[%emt 0:06:17]} Bxc5 {[%emt 0:00:31]} 32. Na4 {[%emt 0:01:33]} Ba7 {[%emt 0:05:32]} 33. Rh1 {[%emt 0:01:16]} Nf8 {[%emt 0:01:40]} 34. f4 {[%emt 0:01:03]} Nfe6 {[%emt 0:06:07]} 35. f5 {[%emt 0:03:42]} gxf5 {[%emt 0:02:29]} 36. exf5 {[%emt 0:00:44]} Nxg5 {[%emt 0:00:12]} 37. Bxg5 {[%emt 0:02:20]} e4+ {[%emt 0:00:19]} 38. Kc3 {[%emt 0:02:47]} Nxf5 {[%emt 0:06:40]} 39. Rxh5 {[%emt 0:03:52]} e3 {[%emt 0:00:35]} 40. Bf4 {[%emt 0:01:38]} Ng7 {[%emt 0:03:54]} 41. Rh1 {[%emt 0:00:00]} Re4 {[%emt 0:00:38]} 42. Nb2 {[%emt 0:00:37]} Ke6 {[%emt 0:00:29]} 43. Bxe3 {[%emt 0:00:59]} Bxe3 {[%emt 0:00:25]} 44. Nc7+ {[%emt 0:00:22]} Kf5 {[%emt 0:04:06]} 45. Rf1+ {[%emt 0:00:07]} Rf4 {[%emt 0:00:30]} 46. Rxf4+ {[%emt 0:00:14]} Bxf4 {[%emt 0:00:11]} 47. Nxa6 {[%emt 0:00:09]} Ne6 {[%emt 0:01:02]} 48. Kc4 {[%emt 0:00:18]} Ke5 {[%emt 0:01:09]} 49. Kb5 {[%emt 0:00:34]} Kd6 {[%emt 0:02:03]} 50. Nc4+ {[%emt 0:00:44]} Kd7 {[%emt 0:00:22]} 51. Kb6 {[%emt 0:00:23]} Bh2 {[%emt 0:00:29]} 52. Kb7 {[%emt 0:00:32]} Nd8+ {[%emt 0:00:03]} 53. Kb6 {[%emt 0:00:36]} Bg1+ {[%emt 0:00:07]} 54. Nc5+ {[%emt 0:00:43]} Bxc5+ {[%emt 0:00:11]} 55. Kxc5 {[%emt 0:00:02]} Kc7 {[%emt 0:00:05]} 56. a4 {[%emt 0:00:14]} Kb7 {[%emt 0:01:57]} 57. Kb5 {[%emt 0:00:30]} Ne6 {[%emt 0:00:07]} 58. Nd6+ {[%emt 0:00:20]} Ka7 {[%emt 0:00:07]} 59. Nf5 1/2-1/2

[Event "September Lviv Tradition 2019"]
[Site "Lviv"]
[Date "2019.09.26"]
[Round "7.1"]
[White "Frolov, Artur"]
[Black "Goikhman, Valentin"]
[Result "1-0"]
[ECO "B51"]
[WhiteElo "2425"]
[BlackElo "2295"]
[Annotator "NA"]
[PlyCount "109"]
[EventDate "2019.09.23"]
[EventType "tourn"]
[EventCountry "UKR"]
[SourceTitle "playchess.com"]
[Source "ChessBase"]
[SourceQuality "1"]
[TimeControl "5400+30"]

1. e4 {[%emt 0:06:07]} c5 {[%emt 0:00:05]} 2. Nf3 {[%emt 0:00:05]} d6 {[%emt 0:00:12]} 3. Bb5+ {[%emt 0:00:25]} Nd7 {[%emt 0:00:31]} 4. c4 {[%emt 0:00:06]} Ngf6 {[%emt 0:01:37]} 5. Nc3 {[%emt 0:00:05]} g6 {[%emt 0:00:33]} 6. O-O {[%emt 0:00:11]} Bg7 {[%emt 0:01:34]} 7. d3 {[%emt 0:00:07]} O-O {[%emt 0:01:17]} 8. Ba4 {[%emt 0:00:03]} Ne5 {[%emt 0:09:34]} 9. Nxe5 {[%emt 0:00:22]} dxe5 {[%emt 0:00:04]} 10. a3 {[%emt 0:00:10]} Bd7 {[%emt 0:07:14]} 11. b4 {[%emt 0:02:00]} Nh5 {[%emt 0:14:58]} 12. bxc5 {[%emt 0:04:29]} Nf4 {[%emt 0:10:41]} 13. d4 {[%emt 0:08:17]} Bxa4 {[%emt 0:04:25]} 14. Nxa4 {[%emt 0:00:15]} Qxd4 {[%emt 0:00:22]} 15. Bxf4 {[%emt 0:03:06]} exf4 {[%emt 0:01:31]} 16. Qxd4 {[%emt 0:00:46]} Bxd4 {[%emt 0:00:04]} 17. Rab1 {[%emt 0:00:05]} Rab8 {[%emt 0:15:24]} 18. Rb3 {[%emt 0:01:20]} Rfc8 {[%emt 0:01:01]} 19. Rfb1 {[%emt 0:00:06]} Rc7 {[%emt 0:03:47]} 20. Kf1 {[%emt 0:01:44]} e5 {[%emt 0:06:03]} 21. f3 {[%emt 0:03:52]} Kg7 {[%emt 0:05:42]} 22. Rb5 {[%emt 0:07:31]} b6 {[%emt 0:07:52]} 23. Ke2 {[%emt 0:06:44]} Ra8 {[%emt 0:03:14]} 24. R1b3 {[%emt 0:03:02]} bxc5 {[%emt 0:01:32]} 25. Nc3 {[%emt 0:00:55]} Bxc3 {[%emt 0:01:23]} 26. Rxc3 {[%emt 0:00:02]} Rd8 {[%emt 0:00:17]} 27. Rd3 {[%emt 0:00:05]} Rd4 {[%emt 0:00:48]} 28. Rxd4 {[%emt 0:00:50]} exd4 {[%emt 0:00:12]} 29. g3 {[%emt 0:07:24]} fxg3 {[%emt 0:00:14]} 30. hxg3 {[%emt 0:00:01]} Rc6 {[%emt 0:01:05]} 31. e5 {[%emt 0:03:36]} Ra6 {[%emt 0:01:37]} 32. Rxc5 {[%emt 0:01:25]} Rxa3 {[%emt 0:00:05]} 33. Rd5 {[%emt 0:00:39]} Re3+ {[%emt 0:00:54]} 34. Kf2 {[%emt 0:00:03]} g5 {[%emt 0:00:33]} 35. f4 {[%emt 0:01:10]} g4 {[%emt 0:00:33]} 36. Rxd4 {[%emt 0:00:10]} Rf3+ {[%emt 0:00:13]} 37. Kg2 {[%emt 0:00:04]} Rc3 {[%emt 0:00:46]} 38. f5 {[%emt 0:00:42]} Re3 {[%emt 0:00:29]} 39. Rxg4+ {[%emt 0:00:34]} Kf8 {[%emt 0:00:25]} 40. c5 {[%emt 0:07:13]} Rxe5 {[%emt 0:00:07]} 41. Rc4 {[%emt 0:00:07]} Ke8 {[%emt 0:00:35]} 42. g4 {[%emt 0:00:24]} a5 {[%emt 0:00:41]} 43. Kf3 {[%emt 0:00:11]} Kd7 {[%emt 0:00:43]} 44. Kf4 {[%emt 0:00:18]} Rd5 {[%emt 0:00:28]} 45. Kg5 {[%emt 0:01:02]} Kc6 {[%emt 0:00:27]} 46. Kf6 {[%emt 0:00:05]} Rd7 {[%emt 0:00:32]} 47. Kg7 {[%emt 0:00:48]} Kb5 {[%emt 0:00:29]} 48. Rc1 {[%emt 0:00:31]} a4 {[%emt 0:00:32]} 49. g5 {[%emt 0:02:26]} a3 {[%emt 0:00:31]} 50. f6 {[%emt 0:00:03]} Kb4 {[%emt 0:00:33]} 51. Kxh7 {[%emt 0:02:10]} a2 {[%emt 0:00:24]} 52. Kg8 {[%emt 0:00:44]} Rd5 {[%emt 0:00:30]} 53. g6 {[%emt 0:02:26]} Rxc5 {[%emt 0:00:21]} 54. Ra1 {[%emt 0:00:01]} fxg6 {[%emt 0:00:42]} 55. Rxa2 1-0

[Event "September Lviv Tradition 2019"]
[Site "Lviv"]
[Date "2019.09.26"]
[Round "7.2"]
[White "Nester, Ihor"]
[Black "Vakulenko, Oleksandr"]
[Result "0-1"]
[ECO "A06"]
[WhiteElo "2383"]
[BlackElo "2167"]
[Annotator "NA"]
[PlyCount "84"]
[EventDate "2019.09.23"]
[EventType "tourn"]
[EventCountry "UKR"]
[SourceTitle "playchess.com"]
[Source "ChessBase"]
[SourceQuality "1"]
[TimeControl "5400+30"]

1. Nf3 {[%emt 0:00:00]} d5 {[%emt 0:00:00]} 2. d4 {[%emt 0:00:00]} e6 {[%emt 0:00:00]} 3. c4 {[%emt 0:00:00]} c6 {[%emt 0:00:03]} 4. Qc2 {[%emt 0:01:22]} Nf6 {[%emt 0:00:59]} 5. Nbd2 {[%emt 0:01:18]} Nbd7 {[%emt 0:05:14]} 6. g3 {[%emt 0:00:16]} b6 {[%emt 0:00:58]} 7. Bg2 {[%emt 0:00:27]} Bb7 {[%emt 0:00:07]} 8. O-O {[%emt 0:01:04]} Be7 {[%emt 0:00:55]} 9. e4 {[%emt 0:00:12]} dxe4 {[%emt 0:02:32]} 10. Nxe4 {[%emt 0:00:05]} O-O {[%emt 0:01:24]} 11. Rd1 {[%emt 0:00:38]} Nxe4 {[%emt 0:09:31]} 12. Qxe4 {[%emt 0:00:05]} Qc8 {[%emt 0:00:26]} 13. Ng5 {[%emt 0:15:40]} Nf6 {[%emt 0:01:20]} 14. Qe2 {[%emt 0:01:12]} Rd8 {[%emt 0:05:46]} 15. Bh3 {[%emt 0:21:26]} Kf8 {[%emt 0:16:55]} 16. Re1 {[%emt 0:03:53]} Bb4 {[%emt 0:10:24]} 17. Bd2 {[%emt 0:11:45]} Bxd2 {[%emt 0:01:22]} 18. Qxd2 {[%emt 0:00:02]} h6 {[%emt 0:02:38]} 19. Bxe6 {[%emt 0:16:42]} fxe6 {[%emt 0:00:32]} 20. Nxe6+ {[%emt 0:00:07]} Kf7 {[%emt 0:00:50]} 21. Nxd8+ {[%emt 0:01:36]} Qxd8 {[%emt 0:00:01]} 22. Qf4 {[%emt 0:00:15]} Qd7 {[%emt 0:11:17]} 23. Re5 {[%emt 0:00:31]} Rd8 {[%emt 0:04:37]} 24. Rae1 {[%emt 0:00:53]} Kf8 {[%emt 0:00:45]} 25. Re6 {[%emt 0:01:12]} Kf7 {[%emt 0:08:46]} 26. Qe5 {[%emt 0:07:49]} Re8 {[%emt 0:07:21]} 27. Rxf6+ {[%emt 0:10:00]} gxf6 {[%emt 0:00:02]} 28. Qh5+ {[%emt 0:00:05]} Kf8 {[%emt 0:00:11]} 29. Qxh6+ {[%emt 0:00:01]} Kg8 {[%emt 0:00:10]} 30. Qg6+ {[%emt 0:00:04]} Kf8 {[%emt 0:00:04]} 31. Qxf6+ {[%emt 0:00:05]} Kg8 {[%emt 0:00:05]} 32. Qg6+ {[%emt 0:00:39]} Kf8 {[%emt 0:00:02]} 33. Rxe8+ Qxe8 34. Qxe8+ {[%emt 0:02:23]} Kxe8 {[%emt 0:00:08]} 35. g4 {[%emt 0:00:03]} Bc8 {[%emt 0:03:07]} 36. h3 {[%emt 0:00:01]} Be6 {[%emt 0:00:22]} 37. b3 {[%emt 0:00:00]} b5 {[%emt 0:04:17]} 38. cxb5 {[%emt 0:00:18]} cxb5 {[%emt 0:00:02]} 39. f4 {[%emt 0:00:54]} Bxb3 {[%emt 0:02:27]} 40. a3 {[%emt 0:00:26]} a5 41. Kf2 b4 {[%emt 0:01:30]} 42. axb4 {[%emt 0:00:14]} a4 {[%emt 0:00:06]} 0-1

[Event "September Lviv Tradition 2019"]
[Site "Lviv"]
[Date "2019.09.26"]
[Round "7.3"]
[White "Sevostianov, Pavel"]
[Black "Cherniaiev, Tykhon"]
[Result "1/2-1/2"]
[ECO "C25"]
[WhiteElo "2260"]
[BlackElo "2112"]
[Annotator "NA"]
[PlyCount "74"]
[EventDate "2019.09.23"]
[EventType "tourn"]
[EventCountry "UKR"]
[SourceTitle "playchess.com"]
[Source "ChessBase"]
[SourceQuality "1"]
[TimeControl "5400+30"]

1. e4 {[%emt 0:00:23]} e5 {[%emt 0:00:21]} 2. Nc3 {[%emt 0:01:03]} Nc6 {[%emt 0:01:37]} 3. g3 {[%emt 0:01:32]} Bc5 {[%emt 0:11:14]} 4. Bg2 {[%emt 0:00:09]} Nf6 {[%emt 0:01:33]} 5. Nge2 {[%emt 0:00:22]} a6 {[%emt 0:09:54]} 6. O-O {[%emt 0:00:52]} d6 {[%emt 0:00:33]} 7. d3 {[%emt 0:01:58]} Be6 {[%emt 0:06:00]} 8. Be3 {[%emt 0:02:39]} Bxe3 {[%emt 0:16:06]} 9. fxe3 {[%emt 0:04:12]} Ne7 {[%emt 0:12:13]} 10. d4 Qd7 {[%emt 0:02:27]} 11. Qe1 {[%emt 0:11:28]} Bh3 {[%emt 0:03:25]} 12. Rd1 {[%emt 0:00:29]} Bxg2 {[%emt 0:00:39]} 13. Kxg2 {[%emt 0:00:01]} Qg4 {[%emt 0:01:21]} 14. Qf2 {[%emt 0:02:02]} O-O {[%emt 0:02:05]} 15. h3 {[%emt 0:01:41]} Qg6 {[%emt 0:00:31]} 16. Qf3 {[%emt 0:00:17]} Nd7 {[%emt 0:03:19]} 17. g4 {[%emt 0:00:28]} f5 {[%emt 0:03:40]} 18. Ng3 {[%emt 0:07:17]} fxe4 {[%emt 0:02:03]} 19. Qxe4 {[%emt 0:00:55]} Qxe4+ {[%emt 0:00:08]} 20. Ngxe4 {[%emt 0:00:24]} Rxf1 {[%emt 0:06:09]} 21. Rxf1 {[%emt 0:02:04]} exd4 {[%emt 0:00:46]} 22. exd4 {[%emt 0:00:10]} h6 {[%emt 0:00:12]} 23. Ng3 {[%emt 0:02:55]} Nf6 {[%emt 0:02:40]} 24. Nf5 {[%emt 0:02:36]} Nxf5 {[%emt 0:00:20]} 25. Rxf5 {[%emt 0:00:09]} Re8 {[%emt 0:00:09]} 26. Kf2 {[%emt 0:00:21]} Ne4+ {[%emt 0:01:58]} 27. Nxe4 {[%emt 0:00:06]} Rxe4 {[%emt 0:00:04]} 28. c3 {[%emt 0:00:28]} g6 {[%emt 0:03:37]} 29. Rf3 {[%emt 0:00:34]} Kg7 {[%emt 0:01:27]} 30. Re3 {[%emt 0:00:19]} Rxe3 {[%emt 0:00:22]} 31. Kxe3 {[%emt 0:00:05]} Kf6 {[%emt 0:00:06]} 32. Kf4 {[%emt 0:01:53]} d5 {[%emt 0:00:43]} 33. h4 {[%emt 0:01:08]} g5+ {[%emt 0:00:04]} 34. hxg5+ {[%emt 0:00:13]} hxg5+ {[%emt 0:00:06]} 35. Ke3 {[%emt 0:00:19]} Ke6 {[%emt 0:00:51]} 36. Kd3 {[%emt 0:00:17]} b5 {[%emt 0:01:51]} 37. b4 {[%emt 0:00:12]} Kd6 {[%emt 0:00:15] Ke4 Ke5+} 1/2-1/2

[Event "September Lviv Tradition 2019"]
[Site "Lviv"]
[Date "2019.09.26"]
[Round "7.4"]
[White "Siniauski, Artsiom"]
[Black "Rydstrom, Tom"]
[Result "1/2-1/2"]
[ECO "C97"]
[WhiteElo "2233"]
[BlackElo "2322"]
[Annotator "NA"]
[PlyCount "131"]
[EventDate "2019.09.23"]
[EventType "tourn"]
[EventCountry "UKR"]
[SourceTitle "playchess.com"]
[Source "ChessBase"]
[SourceQuality "1"]
[TimeControl "5400+30"]

1. e4 {[%emt 0:00:00]} e5 {[%emt 0:00:00]} 2. Nf3 {[%emt 0:00:00]} Nc6 {[%emt 0:00:04]} 3. Bb5 {[%emt 0:00:00]} a6 {[%emt 0:00:19]} 4. Ba4 {[%emt 0:00:00]} Nf6 {[%emt 0:00:23]} 5. O-O {[%emt 0:00:14]} Be7 {[%emt 0:01:02]} 6. Re1 {[%emt 0:00:25]} b5 {[%emt 0:00:33]} 7. Bb3 {[%emt 0:00:05]} d6 {[%emt 0:00:23]} 8. c3 {[%emt 0:00:12]} O-O {[%emt 0:00:16]} 9. h3 {[%emt 0:00:17]} Na5 {[%emt 0:00:55]} 10. Bc2 {[%emt 0:00:34]} c5 {[%emt 0:00:07]} 11. d4 {[%emt 0:00:55]} Qc7 {[%emt 0:00:25]} 12. Nbd2 {[%emt 0:01:34]} Bd7 {[%emt 0:00:36]} 13. d5 {[%emt 0:02:41]} c4 {[%emt 0:00:14]} 14. Nf1 {[%emt 0:00:35]} Nb7 {[%emt 0:00:13]} 15. Ng3 {[%emt 0:00:54]} Rfe8 {[%emt 0:00:16]} 16. Nh2 {[%emt 0:03:12]} Nc5 {[%emt 0:00:48]} 17. Ng4 {[%emt 0:01:26]} Nxg4 {[%emt 0:02:42]} 18. hxg4 {[%emt 0:00:09]} Qd8 {[%emt 0:19:09]} 19. Be3 {[%emt 0:08:45]} Rc8 {[%emt 0:01:26]} 20. Nf5 {[%emt 0:03:01]} Bxf5 {[%emt 0:01:18]} 21. exf5 {[%emt 0:04:32]} Bg5 {[%emt 0:00:50]} 22. Qd2 {[%emt 0:01:27]} h6 {[%emt 0:01:14]} 23. g3 {[%emt 0:03:18]} e4 {[%emt 0:04:15]} 24. Kg2 {[%emt 0:06:19]} Re5 {[%emt 0:10:40]} 25. Qd4 {[%emt 0:21:08]} Nd3 {[%emt 0:10:38]} 26. Re2 {[%emt 0:14:34]} Bxe3 {[%emt 0:11:08]} 27. Rxe3 {[%emt 0:01:04]} Rc5 {[%emt 0:02:40]} 28. Rxe4 {[%emt 0:02:26]} Rcxd5 {[%emt 0:00:28]} 29. Qe3 {[%emt 0:00:26]} Rxe4 {[%emt 0:00:49]} 30. Qxe4 {[%emt 0:00:23]} Re5 {[%emt 0:00:28]} 31. Bxd3 {[%emt 0:08:08]} Rxe4 {[%emt 0:00:03]} 32. Bxe4 {[%emt 0:00:04]} Qg5 {[%emt 0:00:27]} 33. Rd1 {[%emt 0:00:30]} Qxg4 {[%emt 0:00:50]} 34. f3 {[%emt 0:00:10]} Qg5 {[%emt 0:00:19]} 35. Rxd6 {[%emt 0:00:09]} h5 {[%emt 0:00:46]} 36. Kh3 {[%emt 0:01:47]} a5 {[%emt 0:05:15]} 37. Rb6 {[%emt 0:01:08]} Qc1 {[%emt 0:08:00]} 38. Rb8+ {[%emt 0:03:35]} Kh7 {[%emt 0:00:02]} 39. f6+ {[%emt 0:00:09]} g6 {[%emt 0:00:01]} 40. Kh4 {[%emt 0:00:32]} Qh1+ {[%emt 0:02:15]} 41. Kg5 {[%emt 0:00:08]} Qh2 {[%emt 0:00:16]} 42. Bxg6+ {[%emt 0:01:04]} fxg6 {[%emt 0:00:01]} 43. Rb7+ {[%emt 0:00:08]} Kg8 {[%emt 0:00:35]} 44. Rb8+ {[%emt 0:00:12]} Kf7 {[%emt 0:00:01]} 45. Rb7+ {[%emt 0:00:07]} Ke8 {[%emt 0:06:22]} 46. Rb8+ {[%emt 0:05:17]} Kd7 {[%emt 0:05:00]} 47. Kh6 {[%emt 0:01:41]} Qxg3 {[%emt 0:00:03]} 48. Rb7+ {[%emt 0:00:16]} Kc6 {[%emt 0:05:13]} 49. Re7 {[%emt 0:04:15]} Qxf3 {[%emt 0:04:09]} 50. Kg7 {[%emt 0:00:23]} Kd6 {[%emt 0:00:29]} 51. Re8 {[%emt 0:03:45]} b4 {[%emt 0:00:24]} 52. cxb4 c3 53. bxc3 {[%emt 0:01:55]} Qxc3 {[%emt 0:00:03]} 54. bxa5 {[%emt 0:00:28]} Kc7 {[%emt 0:01:01]} 55. a6 {[%emt 0:00:22]} Kb6 {[%emt 0:00:01]} 56. Re6+ {[%emt 0:00:14]} Ka7 {[%emt 0:00:09]} 57. Kh7 {[%emt 0:00:30]} Qc8 {[%emt 0:01:43]} 58. f7 {[%emt 0:00:44]} Qxe6 {[%emt 0:00:21]} 59. f8=Q {[%emt 0:00:09]} Qf5 {[%emt 0:00:34]} 60. Qe7+ {[%emt 0:00:33]} Kxa6 {[%emt 0:00:05]} 61. Kh6 {[%emt 0:00:34]} Kb6 {[%emt 0:00:51]} 62. Qb4+ {[%emt 0:00:45]} Qb5 {[%emt 0:00:48]} 63. Qd4+ {[%emt 0:00:17]} Qc5 {[%emt 0:00:06]} 64. Qb2+ {[%emt 0:00:20]} Ka5 {[%emt 0:00:46]} 65. Kxg6 {[%emt 0:00:23]} h4 {[%emt 0:00:16]} 66. Qh2 {[%emt 0:00:39]} 1/2-1/2